fUST/lending_fUST_20240121
["ID","MTS","AMOUNT","RATE_DAILY","PERIOD"]
[312376564,1705845047195,-500.0,0.00027945,2]
[312376565,1705845047204,-14451.48,0.00027945,2]
[312376566,1705845047213,-500.0,0.00027945,2]
[312376567,1705845047223,-500.0,0.00027945,2]
[312376568,1705845047232,-646.98,0.00027945,2]
[312376569,1705845047242,-500.0,0.00027945,2]
[312376570,1705845047251,-8985.4,0.00027945,2]
[312376571,1705845047260,-500.0,0.00027945,2]
[312376572,1705845047269,-500.0,0.00027945,2]
[312376573,1705845047278,-3009.28,0.00027945,2]
[312376574,1705845047288,-8616.53,0.00027945,2]
[312376575,1705845047297,-500.0,0.00027945,2]
[312376576,1705845047306,-1212.07,0.00027945,2]
[312376577,1705845047317,-1991.31,0.00027945,2]
[312376578,1705845047325,-500.0,0.00027945,2]
[312376579,1705845047335,-527.61,0.00027945,2]
[312376580,1705845047344,-500.0,0.00027945,2]
[312376581,1705845047355,-606.58,0.00027945,2]
[312376582,1705845047365,-500.0,0.00027945,2]
[312376583,1705845047375,-1188.66,0.00027945,2]
[312376584,1705845047385,-1385.6,0.00027945,2]
[312376585,1705845047394,-2116.25,0.00027945,2]
[312376586,1705845047406,-596.3317369,0.00027945,2]
[312376587,1705845047417,-500.0,0.00027945,2]
[312376588,1705845047427,-4039.22,0.00027945,2]
[312376589,1705845047437,-500.0,0.00027945,2]
[312376590,1705845047447,-500.0,0.00027945,2]
[312376591,1705845047457,-500.0,0.00027945,2]
[312376592,1705845047469,-500.0,0.00027945,2]
[312376593,1705845047481,-500.0,0.00027945,2]
[312376594,1705845047490,-500.0,0.00027945,2]
[312376595,1705845047499,-500.0,0.00027945,2]
[312376596,1705845047509,-500.0,0.00027945,2]
[312376597,1705845047519,-500.0,0.00027945,2]
[312376598,1705845047528,-500.0,0.00027945,2]
[312376599,1705845047537,-992.85,0.00027945,2]
[312376600,1705845047546,-1249.83,0.00027945,2]
[312376601,1705845047558,-500.0,0.00027945,2]
[312376602,1705845047567,-526.31782774,0.00027945,2]
[312376603,1705845047577,-500.0,0.00027945,2]
[312376604,1705845047585,-1508.03,0.00027945,2]
[312376605,1705845047595,-500.0,0.00027945,2]
[312376606,1705845047604,-500.0,0.00027945,2]
[312376607,1705845047613,-1368.09,0.00027945,2]
[312376608,1705845047622,-524.75,0.00027945,2]
[312376609,1705845047631,-500.0,0.00027945,2]
[312376610,1705845047640,-500.0,0.00027945,2]
[312376611,1705845047649,-500.0,0.00027945,2]
[312376612,1705845047659,-5986.27,0.00027945,2]
[312376613,1705845047668,-500.0,0.00027945,2]
[312376614,1705845047677,-500.0,0.00027945,2]
[312376615,1705845047686,-689.74,0.00027945,2]
[312376616,1705845047695,-1074.45,0.00027945,2]
[312376617,1705845047704,-500.0,0.00027945,2]
[312376618,1705845047714,-151.0,0.00027958,2]
[312376619,1705845047723,-290.23210975,0.00028,2]
[312376620,1705845047732,-277.23266737,0.00028,2]
[312376621,1705845047741,-4119.03611754,0.00028,2]
[312376622,1705845047750,-313.08093929,0.00028,7]
[312376623,1705845047759,-151.0,0.00028,2]
[312376624,1705845047768,-151.0,0.00028219,2]
[312376625,1705845047778,-151.0,0.00028219,2]
[312376626,1705845047787,-151.0,0.00028219,2]
[312376627,1705845047796,-282.0,0.00028219,2]
[312376628,1705845047806,-406.14912,0.00028219,2]
[312376629,1705845047817,-406.14912,0.00028219,2]
[312376630,1705845047826,-406.14912,0.00028219,2]
[312376631,1705845047835,-406.149124,0.00028219,2]
[312376632,1705845047845,-151.0,0.00028219,2]
[312376633,1705845047854,-151.0,0.00028219,2]
[312376634,1705845047863,-1000.0,0.00028219,2]
[312376635,1705845047872,-1000.0,0.00028219,2]
[312376636,1705845047881,-1000.0,0.00028219,2]
[312376637,1705845047890,-1000.0,0.00028219,2]
[312376638,1705845047899,-500.0,0.00028219,2]
[312376639,1705845047908,-468.92844637,0.00028219,2]
[312376640,1705845047918,-500.0,0.00028219,2]
[312376641,1705845047927,-500.0,0.00028219,2]
[312376642,1705845047936,-651.7,0.00028219,2]
[312376643,1705845047945,-500.0,0.00028219,2]
[312376644,1705845047954,-491.83100302,0.00028219,2]
[312376645,1705845047964,-500.0,0.00028219,2]
[312376646,1705845047972,-500.0,0.00028219,2]
[312376647,1705845047983,-500.0,0.00028219,2]
[312376648,1705845047992,-500.0,0.00028219,2]
[312376649,1705845048001,-509.29,0.00028219,2]
[312376650,1705845048011,-500.0,0.00028219,2]
[312376651,1705845048020,-555.98,0.00028219,2]
[312376652,1705845048029,-500.0,0.00028219,2]
[312376653,1705845048039,-500.0,0.00028219,2]
[312376654,1705845048049,-1882.55,0.00028219,2]
[312376655,1705845048058,-500.0,0.00028219,2]
[312376656,1705845048068,-2550.67,0.00028219,2]
[312376657,1705845048078,-1014.72,0.00028219,2]
[312376658,1705845048087,-515.33,0.00028219,2]
[312376659,1705845048096,-500.0,0.00028219,2]
[312376660,1705845048106,-500.0,0.00028219,2]
[312376661,1705845048115,-500.0,0.00028219,2]
[312376662,1705845048125,-500.0,0.00028219,2]
[312376663,1705845048137,-500.0,0.00028219,2]
[312376664,1705845048146,-500.0,0.00028219,2]
[312376665,1705845048155,-500.0,0.00028219,2]
[312376666,1705845048163,-177.60771523,0.00028219,2]
[312376667,1705845048173,-500.0,0.00028219,2]
[312376668,1705845048182,-500.0,0.00028219,2]
[312376669,1705845048191,-621.95,0.00028219,2]
[312376670,1705845048200,-500.0,0.00028219,2]
[312376671,1705845048209,-500.0,0.00028219,2]
[312376672,1705845048218,-500.0,0.00028219,2]
[312376673,1705845048227,-500.0,0.00028219,2]
[312376674,1705845048334,-874.39,0.00028219,2]
[312376675,1705845048345,-500.0,0.00028219,2]
[312376676,1705845048355,-500.0,0.00028219,2]
[312376677,1705845048364,-500.0,0.00028219,2]
[312376678,1705845048375,-500.0,0.00028219,2]
[312376679,1705845048384,-500.0,0.00028219,2]
[312376680,1705845048393,-500.0,0.00028219,2]
[312376681,1705845048402,-1000.0,0.00028219,2]
[312376682,1705845048411,-558.44,0.00028219,2]
[312376683,1705845048421,-183.33898709,0.00028219,2]
[312376684,1705845048430,-1030.37,0.00028219,2]
[312376685,1705845048439,-2306.94,0.00028219,2]
[312376686,1705845048448,-798.39,0.00028219,2]
[312376687,1705845048459,-500.0,0.00028219,2]
[312376688,1705845048471,-500.0,0.00028219,2]
[312376689,1705845048484,-500.0,0.00028219,2]
[312376690,1705845048494,-500.0,0.00028219,2]
[312376691,1705845048504,-500.0,0.00028219,2]
[312376692,1705845048516,-556.67,0.00028219,2]
[312376693,1705845048526,-957.57,0.00028219,2]
[312376694,1705845048536,-569.96,0.00028219,2]
[312376695,1705845048547,-555.99,0.00028219,2]
[312376696,1705845048560,-500.0,0.00028219,2]
[312376697,1705845048570,-500.0,0.00028219,2]
[312376698,1705845048580,-1832.27,0.00028219,2]
[312376699,1705845048592,-527.23,0.00028219,2]
[312376700,1705845048601,-500.0,0.00028219,2]
[312376701,1705845048610,-500.0,0.00028219,2]
[312376702,1705845048620,-465.47627726,0.00028219,2]
[312376703,1705845048633,-388.68371797,0.00028219,2]
[312376704,1705845048642,-500.0,0.00028219,2]
[312376705,1705845048652,-756.22,0.00028219,2]
[312376706,1705845048662,-1665.91,0.00028219,2]
[312376707,1705845048671,-503.44840265,0.00028219,2]
[312376708,1705845048681,-1117.92,0.00028219,2]
[312376709,1705845048690,-563.13250472,0.00028219,2]
[312376710,1705845048700,-779.21,0.00028219,2]
[312376711,1705845048709,-770.08612166,0.00028219,2]
[312376712,1705845048718,-500.0,0.00028219,2]
[312376713,1705845048727,-500.0,0.00028219,2]
[312376714,1705845048737,-500.0,0.00028219,2]
[312376715,1705845048746,-805.13,0.00028219,2]
[312376716,1705845048756,-500.0,0.00028219,2]
[312376717,1705845048767,-500.0,0.00028219,2]
[312376718,1705845048776,-500.0,0.00028219,2]
[312376719,1705845048785,-500.0,0.00028219,2]
[312376720,1705845048796,-672.94,0.00028219,2]
[312376721,1705845048805,-500.0,0.00028219,2]
[312376722,1705845048816,-875.2,0.00028219,2]
[312376723,1705845048825,-500.0,0.00028219,2]
[312376724,1705845048834,-500.0,0.00028219,2]
[312376725,1705845048843,-676.85,0.00028219,2]
[312376726,1705845048853,-526.3,0.00028219,2]
[312376727,1705845048863,-1899.5,0.00028219,2]
[312376728,1705845048872,-500.0,0.00028219,2]
[312376729,1705845048881,-500.0,0.00028219,2]
[312376730,1705845048891,-24464.93,0.00028219,2]
[312376731,1705845048900,-500.0,0.00028219,2]
[312376732,1705845048909,-5949.17,0.00028219,2]
[312376733,1705845048919,-776.61,0.00028219,2]
[312376734,1705845048927,-500.0,0.00028219,2]
[312376735,1705845048937,-500.0,0.00028219,2]
[312376736,1705845048946,-310.73024265,0.00028219,2]
[312376737,1705845048954,-500.0,0.00028219,2]
[312376738,1705845048964,-500.0,0.00028219,2]
[312376739,1705845048972,-500.0,0.00028219,2]
[312376740,1705845048982,-656.66,0.00028219,2]
[312376741,1705845048992,-958.38,0.00028219,2]
[312376742,1705845049001,-580.5625675,0.00028219,2]
[312376743,1705845049011,-540.95,0.00028219,2]
[312376744,1705845049020,-453.82432863,0.00028219,2]
[312376745,1705845049030,-500.0,0.00028219,2]
[312376746,1705845049039,-1300.84,0.00028219,2]
[312376747,1705845049048,-562.37,0.00028219,2]
[312376748,1705845049058,-1132.91,0.00028219,2]
[312376749,1705845049067,-2490.9,0.00028219,2]
[312376750,1705845049076,-500.0,0.00028219,2]
[312376751,1705845049085,-500.0,0.00028219,2]
[312376752,1705845049094,-14451.48,0.00028219,2]
[312376753,1705845049103,-500.0,0.00028219,2]
[312376754,1705845049112,-646.98,0.00028219,2]
[312376755,1705845049121,-500.0,0.00028219,2]
[312376756,1705845049131,-8985.4,0.00028219,2]
[312376757,1705845049140,-500.0,0.00028219,2]
[312376758,1705845049149,-500.0,0.00028219,2]
[312376759,1705845049158,-3009.28,0.00028219,2]
[312376760,1705845049167,-8616.53,0.00028219,2]
[312376761,1705845049176,-1212.07,0.00028219,2]
[312376762,1705845049185,-1991.31,0.00028219,2]
[312376763,1705845049194,-500.0,0.00028219,2]
[312376764,1705845049202,-527.61,0.00028219,2]
[312376765,1705845049212,-500.0,0.00028219,2]
[312376766,1705845049221,-606.58,0.00028219,2]
[312376767,1705845049230,-500.0,0.00028219,2]
[312376768,1705845049239,-1188.66,0.00028219,2]
[312376769,1705845049248,-1385.6,0.00028219,2]
[312376770,1705845049256,-2116.25,0.00028219,2]
[312376771,1705845049265,-263.76446856,0.00028219,2]
[312376772,1705845049275,-4039.22,0.00028219,2]
[312376773,1705845049284,-239.29179191,0.00028219,2]
[312376774,1705845049293,-500.0,0.00028219,2]
[312376775,1705845049302,-500.0,0.00028219,2]
[312376776,1705845049311,-500.0,0.00028219,2]
[312376777,1705845049320,-500.0,0.00028219,2]
[312376778,1705845049329,-500.0,0.00028219,2]
[312376779,1705845049338,-219.39829432,0.00028219,2]
[312376780,1705845049347,-500.0,0.00028219,2]
[312376781,1705845049356,-500.0,0.00028219,2]
[312376782,1705845049365,-500.0,0.00028219,2]
[312376783,1705845049374,-992.85,0.00028219,2]
[312376784,1705845049383,-1249.83,0.00028219,2]
[312376785,1705845049392,-500.0,0.00028219,2]
[312376786,1705845049401,-500.0,0.00028219,2]
[312376787,1705845049410,-1508.03,0.00028219,2]
[312376788,1705845049419,-500.0,0.00028219,2]
[312376789,1705845049428,-500.0,0.00028219,2]
[312376790,1705845049437,-1368.09,0.00028219,2]
[312376791,1705845049446,-524.75,0.00028219,2]
[312376792,1705845049455,-500.0,0.00028219,2]
[312376793,1705845049464,-500.0,0.00028219,2]
[312376794,1705845049473,-500.0,0.00028219,2]
[312376795,1705845049487,-5986.27,0.00028219,2]
[312376796,1705845049496,-500.0,0.00028219,2]
[312376797,1705845049505,-500.0,0.00028219,2]
[312376798,1705845049514,-689.74,0.00028219,2]
[312376799,1705845049525,-1074.45,0.00028219,2]
[312376800,1705845049534,-500.0,0.00028219,2]
[312376801,1705845049543,-151.0,0.00028493,2]
[312376802,1705845049553,-500.0,0.00028493,2]
[312376803,1705845049563,-500.0,0.00028493,2]
[312376804,1705845049571,-500.0,0.00028493,2]
[312376805,1705845049580,-651.7,0.00028493,2]
[312376806,1705845049589,-500.0,0.00028493,2]
[312376807,1705845049599,-500.0,0.00028493,2]
[312376808,1705845049608,-500.0,0.00028493,2]
[312376809,1705845049617,-500.0,0.00028493,2]
[312376810,1705845049626,-509.29,0.00028493,2]
[312376811,1705845049635,-500.0,0.00028493,2]
[312376812,1705845049645,-555.98,0.00028493,2]
[312376813,1705845049655,-500.0,0.00028493,2]
[312376814,1705845049665,-500.0,0.00028493,2]
[312376815,1705845049674,-1882.55,0.00028493,2]
[312376816,1705845049683,-500.0,0.00028493,2]
[312376817,1705845049692,-2550.67,0.00028493,2]
[312376818,1705845049701,-1014.72,0.00028493,2]
[312376819,1705845049710,-515.33,0.00028493,2]
[312376820,1705845049719,-500.0,0.00028493,2]
[312376821,1705845049729,-530.89378445,0.00028493,2]
[312376822,1705845049738,-500.0,0.00028493,2]
[312376823,1705845049746,-500.0,0.00028493,2]
[312376824,1705845049755,-500.0,0.00028493,2]
[312376825,1705845049765,-500.0,0.00028493,2]
[312376826,1705845049774,-500.0,0.00028493,2]
[312376827,1705845049783,-500.0,0.00028493,2]
[312376828,1705845049792,-500.0,0.00028493,2]
[312376829,1705845049801,-621.95,0.00028493,2]
[312376830,1705845049810,-500.0,0.00028493,2]
[312376831,1705845049819,-500.0,0.00028493,2]
[312376832,1705845049829,-500.0,0.00028493,2]
[312376833,1705845049837,-500.0,0.00028493,2]
[312376834,1705845049846,-874.39,0.00028493,2]
[312376835,1705845049855,-500.0,0.00028493,2]
[312376836,1705845049865,-500.0,0.00028493,2]
[312376837,1705845049874,-574.04952877,0.00028493,2]
[312376838,1705845049883,-500.0,0.00028493,2]
[312376839,1705845049893,-500.0,0.00028493,2]
[312376840,1705845049902,-500.0,0.00028493,2]
[312376841,1705845049911,-1000.0,0.00028493,2]
[312376842,1705845049921,-558.44,0.00028493,2]
[312376843,1705845049930,-1030.37,0.00028493,2]
[312376844,1705845049939,-2306.94,0.00028493,2]
[312376845,1705845049948,-798.39,0.00028493,2]
[312376846,1705845049958,-500.0,0.00028493,2]
[312376847,1705845049967,-500.0,0.00028493,2]
[312376848,1705845049976,-500.0,0.00028493,2]
[312376849,1705845049986,-500.0,0.00028493,2]
[312376850,1705845049995,-490.94658652,0.00028493,2]
[312376851,1705845050005,-556.67,0.00028493,2]
[312376852,1705845050014,-957.57,0.00028493,2]
[312376853,1705845050024,-569.96,0.00028493,2]
[312376854,1705845050033,-555.99,0.00028493,2]
[312376855,1705845050043,-500.0,0.00028493,2]
[312376856,1705845050053,-500.0,0.00028493,2]
[312376857,1705845050062,-1832.27,0.00028493,2]
[312376858,1705845050072,-527.23,0.00028493,2]
[312376859,1705845050082,-500.0,0.00028493,2]
[312376860,1705845050091,-500.0,0.00028493,2]
[312376861,1705845050100,-500.0,0.00028493,2]
[312376862,1705845050110,-756.22,0.00028493,2]
[312376863,1705845050119,-1665.91,0.00028493,2]
[312376864,1705845050129,-1117.92,0.00028493,2]
[312376865,1705845050138,-779.21,0.00028493,2]
[312376866,1705845050148,-500.0,0.00028493,2]
[312376867,1705845050157,-500.0,0.00028493,2]
[312376868,1705845050166,-500.0,0.00028493,2]
[312376869,1705845050175,-805.13,0.00028493,2]
[312376870,1705845050184,-500.0,0.00028493,2]
[312376871,1705845050193,-500.0,0.00028493,2]
[312376872,1705845050202,-500.0,0.00028493,2]
[312376873,1705845050212,-500.0,0.00028493,2]
[312376874,1705845050221,-672.94,0.00028493,2]
[312376875,1705845050230,-500.0,0.00028493,2]
[312376876,1705845050239,-875.2,0.00028493,2]
[312376877,1705845050249,-500.0,0.00028493,2]
[312376878,1705845050258,-500.0,0.00028493,2]
[312376879,1705845050268,-676.85,0.00028493,2]
[312376880,1705845050277,-526.3,0.00028493,2]
[312376881,1705845050286,-1899.5,0.00028493,2]
[312376882,1705845050295,-500.0,0.00028493,2]
[312376883,1705845050304,-500.0,0.00028493,2]
[312376884,1705845050313,-24464.93,0.00028493,2]
[312376885,1705845050322,-504.1339505,0.00028493,2]
[312376886,1705845050331,-5949.17,0.00028493,2]
[312376887,1705845050340,-776.61,0.00028493,2]
[312376888,1705845050349,-500.0,0.00028493,2]
[312376889,1705845050358,-546.07773803,0.00028493,2]
[312376890,1705845050366,-500.0,0.00028493,2]
[312376891,1705845050375,-500.0,0.00028493,2]
[312376892,1705845050384,-500.0,0.00028493,2]
[312376893,1705845050393,-656.66,0.00028493,2]
[312376894,1705845050402,-958.38,0.00028493,2]
[312376895,1705845050411,-540.95,0.00028493,2]
[312376896,1705845050420,-500.0,0.00028493,2]
[312376897,1705845050429,-1300.84,0.00028493,2]
[312376898,1705845050438,-562.37,0.00028493,2]
[312376899,1705845050447,-1132.91,0.00028493,2]
[312376900,1705845050456,-2490.9,0.00028493,2]
[312376901,1705845050466,-500.0,0.00028493,2]
[312376902,1705845050476,-500.0,0.00028493,2]
[312376903,1705845050487,-14451.48,0.00028493,2]
[312376904,1705845050496,-500.0,0.00028493,2]
[312376905,1705845050505,-646.98,0.00028493,2]
[312376906,1705845050515,-500.0,0.00028493,2]
[312376907,1705845050524,-8985.4,0.00028493,2]
[312376908,1705845050533,-500.0,0.00028493,2]
[312376909,1705845050542,-500.0,0.00028493,2]
[312376910,1705845050552,-3009.28,0.00028493,2]
[312376911,1705845050564,-8616.53,0.00028493,2]
[312376912,1705845050573,-1212.07,0.00028493,2]
[312376913,1705845050582,-1991.31,0.00028493,2]
[312376914,1705845050591,-500.0,0.00028493,2]
[312376915,1705845050600,-527.61,0.00028493,2]
[312376916,1705845050609,-500.0,0.00028493,2]
[312376917,1705845050618,-606.58,0.00028493,2]
[312376918,1705845050627,-200.80876799,0.00028493,2]
[312376919,1705845050636,-1188.66,0.00028493,2]
[312376920,1705845050645,-1385.6,0.00028493,2]
[312376921,1705845050654,-2116.25,0.00028493,2]
[312376922,1705845050756,-4039.22,0.00028493,2]
[312376923,1705845050766,-500.0,0.00028493,2]
[312376924,1705845050775,-500.0,0.00028493,2]
[312376925,1705845050784,-500.0,0.00028493,2]
[312376926,1705845050793,-500.0,0.00028493,2]
[312376927,1705845050803,-642.51467487,0.00028493,2]
[312376928,1705845050813,-500.0,0.00028493,2]
[312376929,1705845050822,-500.0,0.00028493,2]
[312376930,1705845050831,-500.0,0.00028493,2]
[312376931,1705845050840,-992.85,0.00028493,2]
[312376932,1705845050849,-1249.83,0.00028493,2]
[312376933,1705845050858,-500.0,0.00028493,2]
[312376934,1705845050867,-500.0,0.00028493,2]
[312376935,1705845050876,-1508.03,0.00028493,2]
[312376936,1705845050885,-500.0,0.00028493,2]
[312376937,1705845050895,-500.0,0.00028493,2]
[312376938,1705845050904,-1368.09,0.00028493,2]
[312376939,1705845050913,-524.75,0.00028493,2]
[312376940,1705845050922,-500.0,0.00028493,2]
[312376941,1705845050932,-500.0,0.00028493,2]
[312376942,1705845050941,-500.0,0.00028493,2]
[312376943,1705845050950,-5986.27,0.00028493,2]
[312376944,1705845050959,-500.0,0.00028493,2]
[312376945,1705845050969,-500.0,0.00028493,2]
[312376946,1705845050978,-689.74,0.00028493,2]
[312376947,1705845050987,-1074.45,0.00028493,2]
[312376948,1705845050996,-158.1324523,0.00028493,2]
[312376949,1705845051006,-218.411078,0.00028493,2]
[312376950,1705845051015,-154.4374714,0.00028493,2]
[312376951,1705845051024,-309.381098,0.00028493,2]
[312376952,1705845051034,-171.0157685,0.00028493,2]
[312376953,1705845051044,-159.3657322,0.00028493,2]
[312376954,1705845051054,-153.5209745,0.00028493,2]
[312376955,1705845051063,-199.1433421,0.00028493,2]
[312376956,1705845051073,-199.1433421,0.00028493,2]
[312376957,1705845051082,-199.1433421,0.00028493,2]
[312376958,1705845051091,-620.00236414,0.00028572,2]
[312376959,1705845051100,-200.0,0.00028617,15]
[312376960,1705845051109,-200.0,0.00028617,15]
[312376961,1705845051119,-368.0,0.00028617,15]
[312376962,1705845051128,-500.0,0.00028767,2]
[312376963,1705845051138,-500.0,0.00028767,2]
[312376964,1705845051147,-500.0,0.00028767,2]
[312376965,1705845051156,-651.7,0.00028767,2]
[312376966,1705845051166,-500.0,0.00028767,2]
[312376967,1705845051175,-500.0,0.00028767,2]
[312376968,1705845051185,-500.0,0.00028767,2]
[312376969,1705845051194,-500.0,0.00028767,2]
[312376970,1705845051203,-509.29,0.00028767,2]
[312376971,1705845051213,-500.0,0.00028767,2]
[312376972,1705845051223,-555.98,0.00028767,2]
[312376973,1705845051233,-500.0,0.00028767,2]
[312376974,1705845051243,-500.0,0.00028767,2]
[312376975,1705845051252,-1882.55,0.00028767,2]
[312376976,1705845051261,-500.0,0.00028767,2]
[312376977,1705845051271,-2550.67,0.00028767,2]
[312376978,1705845051280,-1014.72,0.00028767,2]
[312376979,1705845051289,-515.33,0.00028767,2]
[312376980,1705845051299,-500.0,0.00028767,2]
[312376981,1705845051308,-500.0,0.00028767,2]
[312376982,1705845051318,-500.0,0.00028767,2]
[312376983,1705845051328,-500.0,0.00028767,2]
[312376984,1705845051338,-500.0,0.00028767,2]
[312376985,1705845051348,-500.0,0.00028767,2]
[312376986,1705845051357,-500.0,0.00028767,2]
[312376987,1705845051365,-500.0,0.00028767,2]
[312376988,1705845051375,-621.95,0.00028767,2]
[312376989,1705845051384,-500.0,0.00028767,2]
[312376990,1705845051393,-500.0,0.00028767,2]
[312376991,1705845051402,-500.0,0.00028767,2]
[312376992,1705845051412,-874.39,0.00028767,2]
[312376993,1705845051425,-500.0,0.00028767,2]
[312376994,1705845051435,-500.0,0.00028767,2]
[312376995,1705845051444,-500.0,0.00028767,2]
[312376996,1705845051454,-500.0,0.00028767,2]
[312376997,1705845051463,-500.0,0.00028767,2]
[312376998,1705845051473,-1000.0,0.00028767,2]
[312376999,1705845051486,-558.44,0.00028767,2]
[312377000,1705845051495,-1030.37,0.00028767,2]
[312377001,1705845051505,-2306.94,0.00028767,2]
[312377002,1705845051514,-798.39,0.00028767,2]
[312377003,1705845051525,-500.0,0.00028767,2]
[312377004,1705845051534,-500.0,0.00028767,2]
[312377005,1705845051544,-500.0,0.00028767,2]
[312377006,1705845051554,-500.0,0.00028767,2]
[312377007,1705845051564,-556.67,0.00028767,2]
[312377008,1705845051574,-957.57,0.00028767,2]
[312377009,1705845051583,-569.96,0.00028767,2]
[312377010,1705845051592,-555.99,0.00028767,2]
[312377011,1705845051601,-500.0,0.00028767,2]
[312377012,1705845051611,-500.0,0.00028767,2]
[312377013,1705845051619,-1832.27,0.00028767,2]
[312377014,1705845051629,-527.23,0.00028767,2]
[312377015,1705845051638,-500.0,0.00028767,2]
[312377016,1705845051647,-500.0,0.00028767,2]
[312377017,1705845051656,-500.0,0.00028767,2]
[312377018,1705845051665,-756.22,0.00028767,2]
[312377019,1705845051675,-1665.91,0.00028767,2]
[312377020,1705845051685,-155.0,0.00028767,2]
[312377021,1705845051695,-1117.92,0.00028767,2]
[312377022,1705845051705,-779.21,0.00028767,2]
[312377023,1705845051714,-374.03606538,0.00028767,2]
[312377024,1705845051724,-243.80797857,0.00028767,2]
[312377025,1705845051733,-500.0,0.00028767,2]
[312377026,1705845051742,-805.13,0.00028767,2]
[312377027,1705845051751,-500.0,0.00028767,2]
[312377028,1705845051759,-500.0,0.00028767,2]
[312377029,1705845051769,-500.0,0.00028767,2]
[312377030,1705845051778,-500.0,0.00028767,2]
[312377031,1705845051787,-672.94,0.00028767,2]
[312377032,1705845051796,-500.0,0.00028767,2]
[312377033,1705845051805,-875.2,0.00028767,2]
[312377034,1705845051815,-500.0,0.00028767,2]
[312377035,1705845051824,-500.0,0.00028767,2]
[312377036,1705845051833,-676.85,0.00028767,2]
[312377037,1705845051843,-526.3,0.00028767,2]
[312377038,1705845051852,-1899.5,0.00028767,2]
[312377039,1705845051861,-500.0,0.00028767,2]
[312377040,1705845051871,-500.0,0.00028767,2]
[312377041,1705845051881,-24464.93,0.00028767,2]
[312377042,1705845051890,-5949.17,0.00028767,2]
[312377043,1705845051899,-776.61,0.00028767,2]
[312377045,1705845051909,-500.0,0.00028767,2]
[312377046,1705845051918,-500.0,0.00028767,2]
[312377047,1705845051927,-500.0,0.00028767,2]
[312377048,1705845051936,-500.0,0.00028767,2]
[312377049,1705845051946,-656.66,0.00028767,2]
[312377050,1705845051955,-958.38,0.00028767,2]
[312377051,1705845051964,-540.95,0.00028767,2]
[312377052,1705845051973,-423.02517394,0.00028767,2]
[312377053,1705845051982,-1300.84,0.00028767,2]
[312377054,1705845051991,-562.37,0.00028767,2]
[312377055,1705845052001,-1132.91,0.00028767,2]
[312377056,1705845052010,-2490.9,0.00028767,2]
[312377057,1705845052020,-500.0,0.00028767,2]
[312377058,1705845052029,-500.0,0.00028767,2]
[312377059,1705845052039,-14451.48,0.00028767,2]
[312377060,1705845052048,-500.0,0.00028767,2]
[312377061,1705845052058,-646.98,0.00028767,2]
[312377062,1705845052068,-500.0,0.00028767,2]
[312377063,1705845052077,-8985.4,0.00028767,2]
[312377064,1705845052087,-500.0,0.00028767,2]